bitfinex/quotes_BTCUSD_20250802
["timestamp","ask_amount","ask_price","bid_price","bid_amount"]
[1754160745465,4.9953851,112640.0,112630.0,0.006]
[1754160745924,0.36796826,112640.0,112630.0,0.006]
[1754160747005,0.40819826,112640.0,112630.0,0.006]
[1754160747645,0.36796826,112640.0,112630.0,0.006]
[1754160748067,0.36796826,112640.0,112630.0,0.04678]
[1754160748949,0.36796826,112640.0,112630.0,0.04998]
[1754160749162,0.36586826,112640.0,112630.0,0.04998]
[1754160750053,0.36795826,112640.0,112630.0,0.04998]
[1754160750262,0.36586826,112640.0,112630.0,0.04998]
[1754160751310,0.36795826,112640.0,112630.0,0.04998]
[1754160751514,0.36795826,112640.0,112630.0,0.04678]
[1754160752380,0.36795826,112640.0,112630.0,0.04479]
[1754160753007,0.36795826,112640.0,112630.0,0.002]
[1754160753239,0.40818826,112640.0,112630.0,0.002]
[1754160754576,0.46531704,112640.0,112630.0,0.002]
[1754160754827,5.05189388,112640.0,112630.0,0.002]
[1754160756142,5.60863168,112640.0,112630.0,0.002]
[1754160756568,5.63363168,112640.0,112630.0,0.002]
[1754160757000,0.34,112620.0,112600.0,0.11283334]
[1754160757236,4.497944,112610.0,112600.0,0.07324334]
[1754160757448,0.02472422,112610.0,112600.0,0.07523334]
[1754160757879,0.02472422,112610.0,112600.0,0.65953236]
[1754160757880,0.01648397,112610.0,112600.0,0.65953236]
[1754160758089,0.02474357,112610.0,112600.0,0.65731212]
[1754160758305,0.02474664,112610.0,112600.0,0.19864655]
[1754160758514,0.02474664,112610.0,112600.0,0.11802334]
[1754160758732,0.02574664,112610.0,112600.0,0.12024358]
[1754160758939,0.001,112610.0,112600.0,0.12024358]
[1754160759357,0.34,112620.0,112600.0,0.12024358]
[1754160759487,0.3647909,112620.0,112600.0,0.61354236]
[1754160759702,0.3647909,112620.0,112610.0,0.58527878]
[1754160759909,0.0247909,112620.0,112610.0,0.67590162]
[1754160760259,0.03869217,112620.0,112610.0,0.82258162]
[1754160760480,0.03869217,112620.0,112610.0,0.91141918]
[1754160760676,0.04069217,112620.0,112610.0,0.91141918]
[1754160761176,0.04069217,112620.0,112610.0,0.3721304]
[1754160761385,0.04269217,112620.0,112610.0,0.19566]
[1754160761593,0.04478217,112620.0,112610.0,0.19446]
[1754160761795,0.04478217,112620.0,112610.0,0.19438]
[1754160762421,0.04269217,112620.0,112610.0,0.19758]
[1754160763258,0.04369217,112620.0,112610.0,0.19758]
[1754160763891,0.04269217,112620.0,112610.0,0.19758]
[1754160765358,0.04269217,112620.0,112610.0,0.81055566]
[1754160765579,0.0261649,112620.0,112610.0,0.8991885]
[1754160766011,0.14836,112650.0,112610.0,0.8991885]
[1754160766229,0.52481228,112650.0,112630.0,0.53928878]
[1754160766444,0.52481228,112650.0,112630.0,0.19431]
[1754160766657,0.52785228,112650.0,112630.0,0.26766988]
[1754160767556,0.02681228,112650.0,112640.0,0.04279]
[1754160767775,0.02681228,112650.0,112640.0,0.58726878]
[1754160767988,0.02681228,112650.0,112640.0,0.04798]
[1754160768208,0.04071128,112650.0,112640.0,0.07558349]
[1754160768415,0.04071128,112650.0,112640.0,0.61487227]
[1754160768911,0.04071128,112650.0,112640.0,0.07558349]
[1754160769131,0.04171128,112650.0,112640.0,0.07780295]
[1754160769345,0.02616976,112650.0,112640.0,0.07780295]
[1754160769559,0.04271567,112650.0,112640.0,0.07780295]
[1754160769790,0.04171567,112650.0,112640.0,0.07780295]
[1754160770031,0.04271567,112650.0,112640.0,0.08480295]
[1754160770248,0.04271567,112650.0,112640.0,0.05498]
[1754160770894,0.04271567,112650.0,112640.0,0.04979]
[1754160770895,0.04480567,112650.0,112640.0,0.04979]
[1754160771106,0.08503567,112650.0,112640.0,0.007]
[1754160771743,0.17366851,112650.0,112640.0,0.007]
[1754160771950,0.17367749,112650.0,112640.0,0.007]
[1754160772373,4.9950666,112650.0,112640.0,0.007]
[1754160772994,5.01162219,112650.0,112640.0,0.007]
[1754160773431,4.9950666,112650.0,112640.0,0.007]
[1754160773648,5.1401466,112650.0,112640.0,0.007]
[1754160773857,4.9930666,112650.0,112640.0,0.007]
[1754160774062,5.22994416,112650.0,112640.0,0.007]
[1754160774279,5.24649988,112650.0,112640.0,0.007]
[1754160774503,5.78578866,112650.0,112640.0,0.007]
[1754160774707,5.77188966,112650.0,112640.0,0.007]
[1754160774924,5.23260088,112650.0,112640.0,0.007]
[1754160775368,0.73465688,112650.0,112640.0,0.003]
[1754160775580,5.14376332,112650.0,112640.0,0.003]
[1754160776290,5.1272076,112650.0,112640.0,0.003]
[1754160776514,0.64582248,112650.0,112640.0,0.003]
[1754160776726,0.60863248,112650.0,112640.0,0.003]
[1754160776935,5.10657648,112650.0,112640.0,0.003]
[1754160777373,5.13327948,112650.0,112640.0,0.003]
[1754160777586,5.0900176,112650.0,112640.0,0.003]
[1754160777799,5.0869776,112650.0,112640.0,0.04635]
[1754160778904,5.10087736,112650.0,112640.0,0.00135]
[1754160779123,0.34,112640.0,112630.0,0.0032]
[1754160779334,0.34,112640.0,112630.0,0.54248878]
[1754160779554,0.34,112640.0,112630.0,0.60374199]
[1754160779778,0.34,112640.0,112630.0,0.06640321]
[1754160780020,0.00209,112640.0,112630.0,0.00195]
[1754160780287,0.38578,112640.0,112620.0,0.0032]
[1754160780516,0.53649,112640.0,112610.0,0.15086404]
[1754160780743,0.38688,112630.0,112610.0,0.00014404]
[1754160780967,0.34209,112620.0,112610.0,0.00014404]
[1754160781195,0.48965,112620.0,112610.0,0.00014404]
[1754160781416,0.62516284,112620.0,112610.0,0.00014404]
[1754160782327,0.62616284,112620.0,112610.0,0.00114404]
[1754160782617,0.62516284,112620.0,112610.0,0.00014404]
[1754160782858,0.62816284,112620.0,112610.0,0.00014404]
[1754160783093,0.58128284,112620.0,112610.0,0.04144404]
[1754160783328,0.58128284,112620.0,112600.0,0.54248878]
[1754160783329,0.34,112610.0,112600.0,0.07324334]
[1754160783529,0.34,112610.0,112600.0,0.07519334]
[1754160783807,0.34,112610.0,112600.0,0.07199334]
[1754160784036,0.34,112610.0,112600.0,0.07519334]
[1754160784505,0.01390299,112610.0,112600.0,0.07199334]
[1754160784963,0.01690299,112610.0,112600.0,0.15107755]
[1754160785202,0.01690299,112610.0,112600.0,0.12438421]
[1754160785886,0.01690299,112610.0,112600.0,0.12118421]
[1754160786111,0.35690299,112610.0,112600.0,0.0453]
[1754160786805,0.35899299,112610.0,112600.0,0.0453]
[1754160787043,0.40587299,112610.0,112570.0,0.54248878]
[1754160787276,0.19416,112600.0,112580.0,0.04347795]
[1754160787509,0.34209,112590.0,112580.0,0.00012795]
[1754160787958,0.44677028,112590.0,112580.0,0.00012795]
[1754160788178,0.46067592,112590.0,112580.0,0.00012795]
[1754160789296,0.46267592,112590.0,112580.0,0.00012795]
[1754160790123,0.46067592,112590.0,112580.0,0.00012795]
[1754160790341,0.46067592,112590.0,112570.0,0.03947795]
[1754160790551,0.40287564,112590.0,112580.0,0.002]
[1754160790998,0.38897,112590.0,112580.0,0.002]
[1754160791209,0.40287645,112590.0,112580.0,0.002]
[1754160791460,0.40487645,112590.0,112580.0,0.002]
[1754160791676,4.99145329,112590.0,112580.0,0.002]
[1754160791887,5.08029085,112590.0,112580.0,0.002]
[1754160792347,5.08029085,112590.0,112550.0,0.19063]
[1754160792348,0.24234685,112590.0,112550.0,0.19063]
[1754160792563,0.34,112570.0,112550.0,0.19077374]
[1754160793018,0.34,112570.0,112550.0,0.14937374]
[1754160793019,0.00209,112560.0,112550.0,0.14937374]
[1754160793260,0.00209,112560.0,112550.0,0.19272374]
[1754160793497,0.00209,112560.0,112550.0,0.04544374]
[1754160794718,0.01596886,112560.0,112550.0,0.04544374]
[1754160795195,0.01390938,112560.0,112550.0,0.04544374]
[1754160795427,0.01590938,112560.0,112550.0,0.04544374]
[1754160795843,0.01799938,112560.0,112550.0,0.04644374]
[1754160796482,0.0340629,112560.0,112550.0,0.04644374]
[1754160798489,0.01590938,112560.0,112550.0,0.66957811]
[1754160798704,0.01590938,112560.0,112550.0,0.58893252]
[1754160799149,0.01590938,112560.0,112550.0,0.04964374]
[1754160799402,0.01590938,112560.0,112550.0,0.58893252]
[1754160799626,0.01590938,112560.0,112550.0,0.04964374]
[1754160799840,0.01590938,112560.0,112550.0,0.58893252]
[1754160801199,0.01590938,112560.0,112550.0,0.66957811]
[1754160801656,0.01590938,112560.0,112550.0,0.58893252]
[1754160801906,0.01590938,112560.0,112550.0,0.04964374]
[1754160802117,0.01590938,112560.0,112550.0,0.58893252]
[1754160802331,0.01590938,112560.0,112550.0,0.04964374]
[1754160803617,0.01799938,112560.0,112550.0,0.04644374]
[1754160805053,0.45970331,112560.0,112550.0,0.04644374]
[1754160805279,0.35799938,112560.0,112550.0,0.04644374]
[1754160805513,0.01799938,112560.0,112550.0,0.04644374]
[1754160805827,0.01590938,112560.0,112550.0,0.04946374]
[1754160806171,0.01590938,112560.0,112550.0,0.04644374]
[1754160806392,0.04060531,112560.0,112550.0,0.04644374]
[1754160806621,0.08550531,112560.0,112550.0,0.04644374]
[1754160806849,0.08866531,112560.0,112550.0,0.00114374]
[1754160807068,0.17729815,112560.0,112550.0,0.00114374]
[1754160807287,0.47810002,112570.0,112550.0,0.00114374]
[1754160807523,0.01588996,112560.0,112550.0,0.00114374]
[1754160807761,4.55818844,112560.0,112550.0,0.00014374]
[1754160808216,4.56018844,112560.0,112550.0,0.00014374]
[1754160808434,4.61078426,112560.0,112550.0,0.00014374]
[1754160808659,4.56018844,112560.0,112550.0,0.00014374]
[1754160808877,4.55818844,112560.0,112550.0,0.00014374]
[1754160809321,4.61875223,112560.0,112550.0,0.00014374]
[1754160809544,4.95875223,112560.0,112550.0,0.00014374]
[1754160809759,5.04758979,112560.0,112550.0,0.00014374]
[1754160810418,5.04858979,112560.0,112550.0,0.00014374]
[1754160810883,5.04658979,112560.0,112550.0,0.00014374]
[1754160811106,4.497944,112550.0,112530.0,0.91605978]
[1754160811323,0.14732,112540.0,112530.0,0.91605978]
[1754160811539,0.08561652,112550.0,112530.0,0.92119978]
[1754160811754,0.14728,112540.0,112530.0,0.92119978]
[1754160811974,4.997944,112540.0,112530.0,0.92119978]
[1754160812222,4.497944,112540.0,112530.0,0.92119978]
[1754160812437,0.00198,112540.0,112530.0,0.92119978]
[1754160812651,0.50198,112540.0,112530.0,0.92119978]
[1754160812876,0.00198,112540.0,112530.0,0.87720978]
[1754160813094,0.04265,112540.0,112530.0,0.87720978]
[1754160813326,0.409376,112540.0,112530.0,0.87720978]
[1754160813799,0.45471731,112540.0,112530.0,0.87820978]
[1754160814011,0.53312478,112540.0,112530.0,0.87820978]
[1754160814220,0.55975534,112540.0,112530.0,0.87820978]
[1754160814649,0.53554478,112540.0,112530.0,0.87820978]
[1754160814867,0.43052184,112540.0,112530.0,0.87820978]
[1754160815083,0.42854184,112540.0,112530.0,0.92519978]
[1754160815300,0.42854461,112540.0,112530.0,0.92519978]
[1754160816382,0.6905233,112540.0,112530.0,0.92519978]
[1754160816599,0.70443647,112540.0,112530.0,0.92519978]
[1754160817304,0.20443647,112540.0,112530.0,0.92219978]
[1754160817536,0.54639647,112540.0,112530.0,0.92319978]
[1754160817757,0.39911647,112540.0,112530.0,1.55132612]
[1754160817988,0.35591317,112540.0,112530.0,1.46248856]
[1754160818212,0.37240762,112540.0,112530.0,1.46248856]
[1754160819095,0.37240762,112540.0,112530.0,0.92319978]
[1754160820636,0.03240762,112540.0,112530.0,1.46248856]
[1754160820868,0.01591317,112540.0,112530.0,1.65740798]
[1754160821158,0.01591317,112540.0,112530.0,1.1181192]
[1754160821376,0.01591317,112540.0,112530.0,1.65740798]
[1754160821816,0.01391317,112540.0,112530.0,1.65540798]
[1754160822037,0.01391317,112540.0,112530.0,1.1171192]
[1754160822263,0.01391317,112540.0,112530.0,1.65640798]
[1754160822492,0.01391317,112540.0,112530.0,1.65740798]
[1754160822709,0.01591317,112540.0,112530.0,1.56857042]
[1754160823373,0.03244559,112540.0,112530.0,1.56857042]
[1754160823592,0.01853242,112540.0,112530.0,1.56857042]
[1754160824021,0.03244388,112540.0,112530.0,1.56857042]
[1754160824470,0.03244388,112540.0,112530.0,0.92319978]
[1754160824704,0.03244388,112540.0,112530.0,1.01203734]
[1754160824977,0.03442388,112540.0,112530.0,1.11232734]
[1754160825200,0.03244388,112540.0,112530.0,1.15931734]
[1754160825414,0.37442388,112540.0,112530.0,0.92017978]
[1754160825630,0.52170388,112540.0,112530.0,0.92017978]
[1754160825843,0.52170388,112540.0,112530.0,0.91805978]
[1754160826290,0.52170388,112540.0,112530.0,0.91705978]
[1754160826504,0.52270388,112540.0,112530.0,0.91705978]
[1754160826937,0.57971367,112540.0,112530.0,0.87420978]
[1754160827148,0.62038367,112540.0,112530.0,0.87370978]
[1754160827356,0.62138367,112540.0,112530.0,0.87570978]
[1754160828175,0.66672498,112540.0,112530.0,0.87570978]
[1754160828425,0.66914498,112540.0,112530.0,0.87570978]
[1754160828656,0.69587198,112540.0,112530.0,0.87570978]
[1754160828919,0.70414638,112540.0,112530.0,0.87570978]
[1754160829364,5.20209038,112540.0,112530.0,0.87520978]
[1754160830666,5.14308059,112540.0,112530.0,0.87520978]
[1754160831073,4.95271059,112540.0,112530.0,0.87520978]
[1754160831320,4.95271059,112540.0,112530.0,0.92219978]
[1754160831528,5.08969619,112540.0,112530.0,0.92219978]
[1754160831739,5.09167619,112540.0,112530.0,0.91705978]
[1754160832171,5.09167619,112540.0,112530.0,0.91917978]
[1754160832394,5.09167619,112540.0,112530.0,0.91819978]
[1754160832637,5.08969619,112540.0,112530.0,0.91819978]
[1754160833563,5.01762788,112540.0,112530.0,1.45748856]
[1754160834001,0.17964388,112540.0,112530.0,1.45748856]
[1754160834220,0.16573242,112540.0,112530.0,1.45748856]
[1754160834657,0.01853242,112540.0,112530.0,1.00703734]
[1754160834874,0.01853242,112540.0,112530.0,1.54632612]
[1754160835745,0.002,112540.0,112530.0,1.65240798]
[1754160836192,0.002,112540.0,112530.0,1.63495896]
[1754160836913,0.001,112540.0,112530.0,1.63495896]
[1754160837130,0.001,112540.0,112530.0,1.15503262]
[1754160837344,0.01391086,112540.0,112530.0,1.15303262]
[1754160837559,0.01391086,112540.0,112530.0,1.6953214]
[1754160837792,0.01491086,112540.0,112530.0,1.15603262]
[1754160838223,0.01491086,112540.0,112530.0,1.24487018]
[1754160838657,0.01491086,112540.0,112530.0,1.78415896]
[1754160840401,0.01491086,112540.0,112530.0,1.80160798]
[1754160840853,0.00014385,112560.0,112550.0,1.07857756]
[1754160841093,0.026715,112590.0,112550.0,1.42276698]
[1754160841337,0.026715,112590.0,112580.0,0.53928878]
[1754160841567,0.34,112590.0,112580.0,0.14927]
[1754160841784,0.34,112590.0,112580.0,0.19506]
[1754160841998,0.34,112590.0,112580.0,0.0479]
[1754160842218,0.34,112590.0,112580.0,0.25377888]
[1754160842907,0.38243465,112610.0,112580.0,0.8817005]
[1754160843128,0.38067368,112610.0,112590.0,0.53928878]
[1754160843351,0.38067368,112610.0,112590.0,0.19291]
[1754160843572,0.00212,112600.0,112590.0,0.19502]
[1754160843806,0.00212,112600.0,112590.0,0.00211]
[1754160844097,0.00212,112600.0,112590.0,0.14712]
[1754160844317,0.04277,112600.0,112590.0,0.001]
[1754160844773,0.04519,112600.0,112580.0,0.14712]
[1754160845019,0.04819,112600.0,112590.0,0.001]
[1754160845723,0.00512,112600.0,112590.0,0.001]
[1754160845984,0.00512,112600.0,112590.0,0.00311]
[1754160846204,0.003,112600.0,112590.0,0.0489]
[1754160846420,0.01790582,112600.0,112590.0,0.068502]
[1754160847521,0.01790582,112600.0,112590.0,0.0489]
[1754160847728,0.02002582,112600.0,112590.0,0.0489]
[1754160848159,0.02002582,112600.0,112590.0,0.04579]
[1754160848374,0.02002582,112600.0,112590.0,0.02079]
[1754160848587,0.02002582,112600.0,112590.0,0.0229]
[1754160848827,0.01790582,112600.0,112590.0,0.043323]
[1754160849698,0.01790582,112600.0,112590.0,0.02601]
[1754160849908,0.02002582,112600.0,112590.0,0.0229]
[1754160850143,0.02002582,112600.0,112590.0,0.00211]
[1754160850395,0.02002582,112600.0,112590.0,0.04479]
[1754160850611,0.34,112590.0,112580.0,0.04268]
[1754160850827,0.34212,112590.0,112580.0,0.04268]
[1754160851069,0.34212,112590.0,112540.0,0.63604412]
[1754160851070,0.92898878,112590.0,112560.0,0.00311]
[1754160851303,1.07602878,112590.0,112560.0,0.28146284]
[1754160851856,0.04464,112580.0,112560.0,0.28146284]
[1754160852343,0.53562,112590.0,112580.0,0.002]
[1754160852830,0.55164727,112590.0,112580.0,0.002]
[1754160853071,0.50406727,112590.0,112580.0,0.002]
[1754160853314,0.55164727,112590.0,112580.0,0.002]
[1754160853543,0.53674,112590.0,112570.0,0.04268]
[1754160853772,0.53774,112590.0,112570.0,0.04268]
[1754160854252,0.62657756,112590.0,112570.0,0.04268]
[1754160854487,5.08088156,112590.0,112580.0,0.001]
[1754160854720,5.07694156,112590.0,112560.0,0.28146284]
[1754160854956,4.497944,112580.0,112570.0,0.001]
[1754160855192,0.38676,112580.0,112570.0,0.001]
[1754160855887,0.38676,112580.0,112560.0,0.13442284]
[1754160856123,0.45105366,112580.0,112560.0,0.18972]
[1754160856358,0.04464,112570.0,112550.0,0.04579]
[1754160856572,0.34,112560.0,112550.0,0.13442284]
[1754160856824,0.34,112560.0,112550.0,0.13653284]
[1754160857271,0.34212,112560.0,112550.0,0.0479]
[1754160857923,0.35702947,112560.0,112550.0,0.0529]
[1754160858149,0.35602947,112560.0,112550.0,0.0479]
[1754160858364,0.01390947,112560.0,112550.0,0.0479]
[1754160858592,0.01490947,112560.0,112550.0,0.0509]
[1754160858812,0.01490947,112560.0,112550.0,0.1682524]
[1754160859043,0.01490947,112560.0,112550.0,0.1702524]
[1754160859684,0.01490947,112560.0,112550.0,0.1682524]
[1754160859898,0.01490947,112560.0,112550.0,0.14275407]
[1754160860123,0.01490947,112560.0,112550.0,0.28979407]
[1754160860343,0.01490947,112560.0,112550.0,0.28757284]
[1754160860765,0.01702947,112560.0,112550.0,0.28757284]
[1754160860985,0.01702947,112560.0,112550.0,0.04879]
[1754160861207,0.01702947,112560.0,112550.0,0.00611]
[1754160861429,0.06460947,112560.0,112550.0,0.004]
[1754160861887,0.01702947,112560.0,112550.0,0.004]
[1754160863703,0.06166947,112560.0,112550.0,0.004]
[1754160864134,0.10480242,112560.0,112550.0,0.004]
[1754160864373,4.75268642,112560.0,112550.0,0.004]
[1754160864585,4.75529597,112560.0,112550.0,0.004]
[1754160864801,4.79984779,112560.0,112550.0,0.004]
[1754160865020,5.67913657,112560.0,112550.0,0.004]
[1754160865459,1.18119257,112560.0,112550.0,0.004]
[1754160865672,5.67913657,112560.0,112550.0,0.003]
[1754160866095,5.68113657,112560.0,112550.0,0.003]
[1754160866539,0.34,112540.0,112530.0,0.86920978]
[1754160866758,0.48914,112540.0,112530.0,0.86968913]
[1754160868700,0.54489253,112540.0,112530.0,0.86968913]
[1754160868920,0.59829053,112540.0,112530.0,0.86968913]
[1754160869377,0.60129053,112540.0,112530.0,0.86968913]
[1754160870056,5.10023453,112540.0,112530.0,0.87368913]
[1754160870494,5.00199653,112540.0,112530.0,0.87368913]
[1754160871383,5.04383653,112540.0,112530.0,0.87368913]
[1754160871845,5.02872153,112540.0,112530.0,0.87568913]
[1754160872087,5.02872153,112540.0,112530.0,0.91998913]
[1754160873407,5.07056153,112540.0,112530.0,0.87368913]
[1754160873628,5.15939909,112540.0,112530.0,0.87368913]
[1754160873842,5.02872153,112540.0,112530.0,0.91998913]
[1754160874052,5.014809,112540.0,112530.0,0.91998913]
[1754160874964,0.027725,112540.0,112530.0,0.92310913]
[1754160875184,0.341,112540.0,112530.0,0.92310913]
[1754160875404,0.341,112540.0,112530.0,1.07010913]
[1754160876502,0.341,112540.0,112530.0,1.24757953]
[1754160877120,0.341,112540.0,112530.0,1.07010913]
[1754160878184,0.341,112540.0,112530.0,0.92310913]
[1754160878386,0.35491233,112540.0,112530.0,0.92310913]
[1754160879001,0.35705233,112540.0,112530.0,0.92310913]
[1754160879444,0.40189233,112540.0,112530.0,0.87368913]
[1754160879874,0.39889233,112540.0,112530.0,0.87368913]
[1754160880698,0.35705233,112540.0,112530.0,0.87368913]
[1754160880899,0.35491233,112540.0,112530.0,0.92310913]
[1754160881329,0.35491233,112540.0,112530.0,1.01194669]
[1754160881695,0.35491233,112540.0,112530.0,0.92310913]
[1754160881905,0.35705233,112540.0,112530.0,0.91998913]
[1754160882444,0.39889233,112540.0,112530.0,0.87368913]
[1754160882666,0.94118111,112540.0,112530.0,0.87368913]
[1754160882895,5.43912511,112540.0,112530.0,0.87368913]
[1754160883118,5.54077634,112540.0,112530.0,0.87368913]
[1754160884207,5.00148756,112540.0,112530.0,0.87368913]
[1754160884866,4.91265,112540.0,112530.0,0.87368913]
[1754160885074,4.90965,112540.0,112530.0,0.87368913]
[1754160885292,4.86781,112540.0,112530.0,0.91998913]
[1754160885503,4.86781,112540.0,112530.0,0.92310913]
[1754160885936,0.48792,112540.0,112530.0,0.92310913]
[1754160886186,0.48792,112540.0,112530.0,1.01194669]
[1754160886404,0.50183287,112540.0,112530.0,0.92310913]
[1754160887050,0.50397287,112540.0,112530.0,0.91998913]
[1754160887512,0.50183287,112540.0,112530.0,0.92310913]
[1754160888580,0.66083287,112540.0,112530.0,0.92310913]
[1754160888863,0.16297287,112540.0,112530.0,0.91998913]
[1754160889068,0.20481287,112540.0,112530.0,0.87368913]
[1754160889284,0.20781287,112540.0,112530.0,0.87368913]
[1754160889503,0.20481287,112540.0,112530.0,0.87368913]
[1754160889938,0.16297287,112540.0,112530.0,1.00882669]
[1754160890190,0.16083287,112540.0,112530.0,1.01194669]
[1754160890409,0.17736745,112540.0,112530.0,1.01194669]
[1754160891036,0.67736745,112540.0,112530.0,1.01194669]
[1754160891252,0.53044745,112540.0,112530.0,1.01194669]
[1754160891700,0.51391287,112540.0,112530.0,1.01194669]
[1754160891918,0.35391287,112540.0,112530.0,1.01194669]
[1754160892139,0.35605287,112540.0,112530.0,0.91998913]
[1754160892584,0.37259494,112540.0,112530.0,0.91998913]
[1754160892814,0.37259494,112540.0,112530.0,0.92310913]
[1754160893273,0.91188372,112540.0,112530.0,1.02056913]
[1754160893513,1.04556128,112540.0,112530.0,0.87368913]
[1754160895437,1.09917943,112540.0,112530.0,0.87368913]
[1754160897235,1.08527637,112540.0,112530.0,0.87368913]
[1754160898942,5.58322037,112540.0,112530.0,0.87368913]
[1754160900011,5.59713413,112540.0,112530.0,0.87368913]
[1754160900228,5.59712846,112540.0,112530.0,0.87368913]
[1754160901118,5.74396846,112540.0,112530.0,0.87368913]
[1754160901339,5.74396846,112540.0,112530.0,0.86968913]
[1754160901852,5.74496846,112540.0,112530.0,0.87268913]
[1754160902066,5.14057315,112540.0,112530.0,0.87268913]
[1754160902304,5.14157315,112540.0,112530.0,0.87268913]
[1754160902519,4.95289315,112540.0,112530.0,0.92130913]
[1754160902737,5.09759315,112540.0,112530.0,0.92130913]
[1754160902942,5.63688193,112540.0,112530.0,0.92130913]
[1754160903431,5.72781949,112540.0,112530.0,0.91824913]
[1754160903650,5.18853071,112540.0,112530.0,0.91824913]
[1754160903862,5.72781949,112540.0,112530.0,0.91824913]
[1754160904546,5.72781949,112540.0,112530.0,0.91424913]
[1754160904996,5.09969315,112540.0,112530.0,0.91424913]
[1754160905209,5.63898193,112540.0,112530.0,0.91730913]
[1754160905685,5.63070758,112540.0,112530.0,0.91730913]
[1754160905896,5.04397749,112540.0,112530.0,0.91730913]
[1754160906330,4.89713749,112540.0,112530.0,0.91730913]
[1754160906553,5.13487505,112540.0,112530.0,0.91424913]
[1754160906769,5.71666383,112540.0,112530.0,0.86868913]
[1754160907011,5.73486839,112540.0,112530.0,0.86868913]
[1754160907222,5.68913839,112540.0,112530.0,0.86868913]
[1754160907436,5.68913839,112540.0,112530.0,0.91209913]
[1754160907647,5.68913839,112540.0,112530.0,0.91424913]
[1754160908620,5.16346129,112540.0,112530.0,0.86868913]
[1754160908824,5.71772463,112540.0,112530.0,0.86868913]
[1754160909240,5.62888707,112540.0,112530.0,0.86868913]
[1754160911057,5.67422838,112540.0,112530.0,0.86868913]
[1754160911278,5.67745838,112540.0,112530.0,0.86868913]
[1754160911478,5.69137197,112540.0,112530.0,0.86468913]
[1754160913448,5.13710863,112540.0,112530.0,0.86468913]
[1754160913664,5.22594619,112540.0,112530.0,0.86468913]
[1754160913890,5.78020953,112540.0,112530.0,0.86468913]
[1754160915020,5.77697953,112540.0,112530.0,0.86468913]
[1754160915203,5.73447953,112540.0,112530.0,0.91024913]
[1754160915442,5.73447953,112540.0,112530.0,0.91330913]
[1754160916090,5.73447953,112540.0,112530.0,0.90809913]
[1754160916503,5.73447953,112540.0,112530.0,0.85968913]
[1754160916749,5.58767953,112540.0,112530.0,0.90830913]
[1754160916975,5.59812066,112540.0,112530.0,0.90830913]
[1754160917251,5.60022066,112540.0,112530.0,0.90830913]
[1754160917455,5.60022066,112540.0,112530.0,0.85968913]
[1754160917456,5.69129197,112540.0,112530.0,0.85968913]
[1754160918332,5.78012953,112540.0,112530.0,0.85968913]
[1754160918583,5.78012953,112540.0,112530.0,0.85568913]
[1754160920086,5.77689953,112540.0,112530.0,0.85568913]
[1754160920497,5.78517646,112540.0,112530.0,0.85568913]
[1754160920707,5.23091312,112540.0,112530.0,0.85568913]
[1754160920945,5.78517646,112540.0,112530.0,0.85568913]
[1754160922222,5.78518094,112540.0,112530.0,0.85568913]
[1754160922870,5.72876735,112540.0,112530.0,0.90124913]
[1754160923088,5.72868735,112540.0,112530.0,0.90124913]
[1754160923309,5.17442401,112540.0,112530.0,0.90124913]
[1754160923541,5.72868735,112540.0,112530.0,0.90124913]
[1754160924131,5.72658735,112540.0,112530.0,0.90430913]
[1754160924563,5.72868735,112540.0,112530.0,0.90430913]
[1754160924812,5.72868735,112540.0,112530.0,0.90124913]
[1754160925033,5.72869827,112540.0,112530.0,0.90124913]
[1754160925454,5.77440827,112540.0,112530.0,0.90124913]
[1754160925664,5.22014493,112540.0,112530.0,0.89509913]
[1754160925876,5.68557071,112540.0,112530.0,0.89509913]
[1754160926133,5.69948441,112540.0,112530.0,0.89509913]
[1754160926343,1.20154041,112540.0,112530.0,0.89509913]
[1754160926550,5.69948441,112540.0,112530.0,0.89509913]
[1754160926774,5.78832197,112540.0,112530.0,0.89509913]
[1754160927840,5.65377787,112540.0,112530.0,0.90026913]
[1754160930494,4.95077453,112540.0,112530.0,0.90026913]
[1754160930710,5.60629656,112540.0,112530.0,0.90026913]
[1754160931563,5.59801963,112540.0,112530.0,0.90026913]
[1754160931974,5.45141963,112540.0,112530.0,0.90026913]
[1754160932179,5.68681719,112540.0,112530.0,0.90026913]
[1754160933859,5.68681787,112540.0,112530.0,0.90026913]
[1754160934949,5.68894787,112540.0,112530.0,0.90026913]
[1754160935190,5.13468453,112540.0,112530.0,0.90026913]
[1754160935427,0.63674053,112540.0,112530.0,0.90026913]
[1754160935664,0.76003631,112540.0,112530.0,1.04678913]
[1754160935904,0.20573297,112540.0,112530.0,1.04678913]
[1754160936399,0.05921297,112540.0,112530.0,1.04678913]
[1754160936625,0.0426427,112540.0,112530.0,1.04678913]
[1754160936841,0.028729,112540.0,112530.0,1.04678913]
[1754160937277,0.028729,112540.0,112530.0,1.13562669]
[1754160937738,0.028729,112540.0,112530.0,1.04678913]
[1754160937968,0.58299234,112540.0,112530.0,0.90026913]
[1754160938200,0.73164234,112540.0,112530.0,1.04376913]
[1754160938422,0.77735234,112540.0,112530.0,1.04376913]
[1754160938642,0.77735234,112540.0,112530.0,0.99320913]
[1754160938875,5.75835573,112540.0,112530.0,0.84668913]
[1754160939082,5.7666359,112540.0,112530.0,0.84668913]
[1754160939294,5.76663623,112540.0,112530.0,0.84668913]
[1754160939939,5.78055005,112540.0,112530.0,0.84668913]
[1754160944155,5.22628671,112540.0,112530.0,0.84668913]
[1754160944566,5.78055005,112540.0,112530.0,0.84668913]
[1754160945385,5.22628671,112540.0,112530.0,0.84668913]
[1754160945585,5.78055005,112540.0,112530.0,0.84668913]
[1754160945805,5.78055005,112540.0,112530.0,0.84168913]
[1754160947217,5.22628671,112540.0,112530.0,0.84168913]
[1754160947419,5.78055005,112540.0,112530.0,0.84168913]
[1754160948048,5.70250382,112540.0,112530.0,0.84168913]
[1754160948437,5.68859,112540.0,112530.0,0.84168913]
[1754160949080,5.13432666,112540.0,112530.0,0.84168913]
[1754160949520,5.68858725,112540.0,112530.0,0.84168913]
[1754160949723,5.68547725,112540.0,112530.0,0.84168913]
[1754160949928,5.63743725,112540.0,112530.0,0.89084913]
[1754160950169,5.6291595,112540.0,112530.0,0.89084913]
[1754160950566,5.6291595,112540.0,112530.0,0.84168913]
[1754160950567,5.72012706,112540.0,112530.0,0.84168913]
[1754160950802,5.77722427,112540.0,112530.0,0.84168913]
[1754160951348,5.79113825,112540.0,112530.0,0.84168913]
[1754160952643,5.79113825,112540.0,112530.0,0.83768913]
[1754160953120,5.80858727,112540.0,112530.0,0.83768913]
[1754160953545,5.80031006,112540.0,112530.0,0.83768913]